[Event "Slovakian-ch Youth 2022"]
[Site "Lubovna"]
[Date "2022.05.24"]
[Round "5.7"]
[White "Petrek, Dominik"]
[Black "Cedzo, Adam"]
[Result "1/2-1/2"]
[ECO "A48"]
[WhiteElo "2110"]
[BlackElo "1869"]
[Annotator "TA"]
[PlyCount "122"]
[EventDate "2022.05.22"]
[EventCountry "SVK"]
[SourceTitle "playchess.com"]
[Source "ChessBase"]
[SourceQuality "1"]
[TimeControl "40/5400+30:1800+30"]

{[%evp 14,122,22,33,66,35,42,39,37,29,41,43,50,37,33,36,54,0,0,-7,0,-47,-34,-56,-52,-61,-20,-61,-61,-48,-45,-52,-32,-39,-41,-45,-42,-41,-44,-86,-74,-98,-66,-60,-27,-70,-65,-105,-109,-150,-112,-137,-90,-96,-84,-89,-83,-76,-79,-102,-11,-11,-11,-11,-11,-11,-11,-11,0,0,0,-11,-11,-11,-11,-11,0,-16,-5,-27,-27,-27,-27,-35,0,-42,-5,-43,0,0,0,0,0,0,0,0,0,0,0,0,0,0,0,0,0,0,0,0,0,0,0]} 1. d4 {[%emt 0:01:39]} Nf6 {[%emt 0:03:06]} 2. Nf3 {[%emt 0:00:24]} g6 {[%emt 0:00:10]} 3. Bg5 {[%emt 0:00:25]} Bg7 {[%emt 0:00:14]} 4. Nbd2 {[%emt 0:00:21]} d6 {[%emt 0:02:32]} 5. e4 {[%emt 0:00:29]} h6 {[%emt 0:01:46]} 6. Bh4 {[%emt 0:00:25]} g5 {[%emt 0:00:27]} 7. Bg3 {[%emt 0:00:24]} Nh5 {[%emt 0:00:13]} 8. c3 {[%emt 0:01:58]} Nc6 {[%emt 0:01:26] A48: 1 d4 Nf6 2 Nf3 g6: Torre, London and Colle Systems.} 9. Bc4 {[%emt 0:08:59]} Nxg3 {[%emt 0:01:34]} 10. hxg3 {[%emt 0:01:28]} e5 {[%emt 0:03:56] White is slightly better.} 11. dxe5 {[%emt 0:07:56]} Nxe5 {[%emt 0:00:06]} 12. Nxe5 {[%emt 0:01:03]} Bxe5 {[%emt 0:00:09]} 13. Qb3 {[%emt 0:11:32]} Qe7 {[%emt 0:01:21]} 14. O-O-O {[%emt 0:02:35] [#]} c6 $146 {[%emt 0:01:58]} ({Predecessor:} 14... g4 15. Be2 c6 16. Nc4 Be6 17. Qb4 Bxc4 18. Qxc4 h5 19. Kb1 O-O-O 20. Rxh5 Rhg8 {1-0 (76) Ortega Amarelle,M (2463)-Joseph,M (2125) Chess.com INT 2021}) 15. f4 {[%emt 0:18:17]} (15. Nf3 $14) 15... gxf4 $11 {[%emt 0:02:58]} 16. gxf4 {[%emt 0:00:06]} Bxf4 {[%emt 0:00:09]} 17. Bxf7+ {[%emt 0:02:04]} Kd8 $15 {[%emt 0:01:33]} 18. Rhf1 {[%emt 0:01:41]} Qxe4 {[%emt 0:00:27]} 19. Qc2 {[%emt 0:09:27]} Qxc2+ {[%emt 0:01:23]} (19... Qe5 {with more complications.} 20. Qa4 Bg5 21. Kb1 Bxd2 22. Rxd2 Kc7) 20. Kxc2 {[%emt 0:00:02]} Bxd2 {[%emt 0:00:44]} 21. Rxd2 {[%emt 0:00:13]} Kc7 {[%emt 0:00:13]} 22. Bh5 {[%emt 0:06:51]} Bd7 {[%emt 0:01:52]} 23. Rf7 {[%emt 0:01:43]} Raf8 {[%emt 0:02:29]} 24. Rdf2 {[%emt 0:01:16]} Rxf7 {[%emt 0:00:36]} 25. Rxf7 {[%emt 0:00:15][%mdl 4096] Endgame KRB-KRB} Kc8 {[%emt 0:03:06]} 26. Rg7 {[%emt 0:02:47]} Bf5+ {[%emt 0:03:00]} 27. Kb3 {[%emt 0:01:01]} Be6+ {[%emt 0:02:09]} 28. Ka3 $1 {[%emt 0:00:31]} Rg8 {[%emt 0:00:19]} 29. Re7 {[%emt 0:02:29]} Bd7 {[%emt 0:00:37]} 30. Rh7 {[%emt 0:02:20]} Rxg2 {[%emt 0:00:44] Threatens to win with ...Rh2.} 31. Rxh6 {[%emt 0:00:04]} d5 {[%emt 0:05:30]} 32. Bd1 {[%emt 0:06:33]} Rg7 {[%emt 0:01:00]} (32... a5 $142 33. Kb3 Kc7) 33. b4 $17 {[%emt 0:00:56]} Bf5 {[%emt 0:01:34]} 34. Bb3 {[%emt 0:00:36]} Rg3 {[%emt 0:01:24]} 35. Kb2 {[%emt 0:00:19]} Rg2+ {[%emt 0:04:28]} 36. Ka3 {[%emt 0:00:18][%cal Ob4b5]} Bc2 {[%emt 0:00:12]} (36... Bd3 $17 37. Rf6 a6 38. Rf8+ Kc7 39. Rf7+ Kb6) 37. Bxc2 $11 {[%emt 0:00:41]} Rxc2 {[%emt 0:00:03] KR-KR} 38. Kb3 {[%emt 0:00:15]} Rg2 {[%emt 0:01:43]} 39. Rh7 {[%emt 0:00:08]} ({Reject} 39. Rh8+ Kc7 $15) 39... Rg3 {[%emt 0:00:53]} 40. Kb2 {[%emt 0:00:11]} ({But not} 40. Rh8+ Kc7 41. Rh7+ Kb6 $15) 40... Rg8 {[%emt 0:02:06]} 41. a4 {[%emt 0:30:55]} Rd8 {[%emt 0:33:14]} 42. Kb3 {[%emt 0:00:40]} Rd7 {[%emt 0:00:11]} 43. Rh6 {[%emt 0:00:20]} Kc7 {[%emt 0:00:25]} 44. a5 {[%emt 0:00:15]} b6 {[%emt 0:05:01]} 45. axb6+ {[%emt 0:01:00]} Kxb6 {[%emt 0:02:14]} 46. Rh4 {[%emt 0:04:26]} (46. c4) 46... Re7 {[%emt 0:01:26]} 47. Rd4 {[%emt 0:00:00]} Re4 {[%emt 0:00:00] [#] And now ...Rxd4 would win.} 48. Rd2 {[%emt 0:00:00]} Re7 {[%emt 0:00:00]} (48... Re3) 49. Ra2 {[%emt 0:00:00]} Rd7 {[%emt 0:00:00]} 50. Ra1 {[%emt 0:00:00]} c5 {[%emt 0:00:00]} 51. bxc5+ {[%emt 0:00:00] The position is equal.} Kxc5 {[%emt 0:00:00]} 52. Ra5+ {[%emt 0:00:00]} Kb6 {[%emt 0:00:00]} 53. Ra4 {[%emt 0:00:00]} a5 {[%emt 0:00:00]} 54. Rh4 {[%emt 0:00:00]} Kc5 {[%emt 0:00:00]} 55. Rg4 {[%emt 0:00:00]} Rb7+ {[%emt 0:00:00]} 56. Ka3 {[%emt 0:00:00]} Rb1 {[%emt 0:00:00]} 57. Ka2 {[%emt 0:00:00]} Re1 {[%emt 0:00:00]} 58. Ra4 {[%emt 0:00:00]} Re4 {[%emt 0:00:00]} 59. Rxa5+ {[%emt 0:00:19]} Kc4 {[%emt 0:00:00]} 60. Kb2 {[%emt 0:01:28]} Re2+ {[%emt 0:00:00]} 61. Kc1 {[%emt 0:00:54]} Kxc3 {[%emt 0:00:00] Weighted Error Value: White=0.11 (very precise) /Black=0.12 (very precise)} 1/2-1/2

[Event "Slovakian-ch Youth 2022"]
[Site "Lubovna"]
[Date "2022.05.24"]
[Round "5.7"]
[White "Carnecky, Viliam"]
[Black "Smetana, Peter"]
[Result "0-1"]
[ECO "B52"]
[WhiteElo "1380"]
[BlackElo "1740"]
[Annotator "NA COMBH"]
[PlyCount "82"]
[EventDate "2022.05.22"]
[EventCountry "SVK"]
[SourceTitle "playchess.com"]
[Source "ChessBase"]
[SourceQuality "1"]
[TimeControl "40/5400+30:1800+30"]

1. e4 {[%emt 0:00:06]} c5 {[%emt 0:00:38]} 2. Nf3 {[%emt 0:00:21]} d6 {[%emt 0:01:15]} 3. Bb5+ {[%emt 0:00:30]} Bd7 {[%emt 0:01:21]} 4. Qe2 {[%emt 0:01:41]} Bxb5 {[%emt 0:04:44]} 5. Qxb5+ {[%emt 0:00:23]} Qd7 {[%emt 0:01:44]} 6. Nc3 {[%emt 0:01:03]} Nc6 {[%emt 0:01:37]} 7. O-O {[%emt 0:04:19]} Nf6 {[%emt 0:00:48]} 8. Qe2 {[%emt 0:02:37]} e6 {[%emt 0:03:32]} 9. d3 {[%emt 0:02:00]} Be7 {[%emt 0:02:08]} 10. h3 {[%emt 0:05:55]} O-O {[%emt 0:03:33]} 11. Bg5 {[%emt 0:02:27]} Rfc8 {[%emt 0:18:25]} 12. Qd2 {[%emt 0:11:24]} h6 {[%emt 0:05:25]} 13. Bh4 {[%emt 0:02:33]} Nd4 {[%emt 0:01:57]} 14. Nxd4 {[%emt 0:07:37]} cxd4 {[%emt 0:00:24]} 15. Bxf6 {[%emt 0:02:03]} Bxf6 {[%emt 0:00:41]} 16. Ne2 {[%emt 0:00:17]} Qb5 {[%emt 0:03:05]} 17. b3 {[%emt 0:01:59]} Qc5 {[%emt 0:01:09]} 18. Rfc1 {[%emt 0:08:58]} Rc7 {[%emt 0:02:19]} 19. b4 {[%emt 0:05:02]} Qc6 {[%emt 0:00:49]} 20. Rab1 {[%emt 0:05:16]} Rac8 {[%emt 0:01:21]} 21. b5 {[%emt 0:03:38]} Qc5 {[%emt 0:02:20]} 22. a4 {[%emt 0:01:07]} d5 {[%emt 0:09:46]} 23. exd5 {[%emt 0:07:46]} Qxd5 {[%emt 0:00:59]} 24. Rb4 {[%emt 0:03:01]} e5 {[%emt 0:02:46]} 25. c4 {[%emt 0:07:35]} dxc3 {[%emt 0:00:25]} 26. Rxc3 {[%emt 0:00:22]} Be7 {[%emt 0:03:26]} 27. Rxc7 {[%emt 0:02:46]} Rxc7 {[%emt 0:00:23]} 28. Rg4 {[%emt 0:01:51]} Bg5 {[%emt 0:08:22]} 29. Qd1 {[%emt 0:01:29]} f5 {[%emt 0:04:40]} 30. Rb4 {[%emt 0:01:52]} Kf7 {[%emt 0:04:27]} 31. Qb3 {[%emt 0:01:44]} Qxb3 {[%emt 0:00:42]} 32. Rxb3 {[%emt 0:00:05]} Ke6 {[%emt 0:00:22]} 33. b6 {[%emt 0:02:56]} axb6 {[%emt 0:00:41]} 34. Rxb6+ {[%emt 0:00:07]} Kd5 {[%emt 0:00:26]} 35. Rb5+ {[%emt 0:00:11]} Kd6 {[%emt 0:00:31]} 36. d4 {[%emt 0:00:25]} exd4 {[%emt 0:00:35]} 37. Nxd4 {[%emt 0:00:09]} g6 {[%emt 0:01:16]} 38. Rb6+ {[%emt 0:01:32]} Kc5 {[%emt 0:00:06]} 39. Rxg6 {[%emt 0:01:29]} Kxd4 {[%emt 0:00:06]} 40. a5 {[%emt 0:00:14]} Rc1+ {[%emt 0:03:49]} 41. Kh2 {[%emt 0:30:09]} Ra1 {[%emt 0:30:16]} 0-1

[Event "Slovakian-ch Youth 2022"]
[Site "Lubovna"]
[Date "2022.05.24"]
[Round "5.8"]
[White "Beres, Tomas"]
[Black "Bidulsky, Matej"]
[Result "1/2-1/2"]
[ECO "B12"]
[WhiteElo "2059"]
[BlackElo "1800"]
[Annotator "TA"]
[PlyCount "69"]
[EventDate "2022.05.22"]
[EventCountry "SVK"]
[SourceTitle "playchess.com"]
[Source "ChessBase"]
[SourceQuality "1"]
[TimeControl "40/5400+30:1800+30"]

{[%evp 9,69,31,85,80,76,69,55,66,112,104,106,110,110,122,125,112,117,99,99,104,132,122,129,135,123,125,126,107,123,108,110,82,99,79,109,100,93,93,90,91,114,87,88,79,79,80,70,60,61,54,106,98,135,139,129,0,0,-115,-94,-94,0,0]} 1. e4 {[%emt 0:00:04]} c6 {[%emt 0:11:14]} 2. d4 {[%emt 0:00:10]} d5 {[%emt 0:00:08]} 3. Nd2 {[%emt 0:00:07]} g6 {[%emt 0:00:39]} 4. c3 {[%emt 0:00:42]} Bg7 {[%emt 0:00:25]} 5. Bd3 {[%emt 0:02:12]} e5 {[%emt 0:01:28] [#]} (5... c5 $14) 6. dxe5 $1 $16 {[%emt 0:00:22] B12: Caro-Kann: Advance Variation.} Bxe5 {[%emt 0:01:16]} 7. Ngf3 {[%emt 0:00:14] [#]} Bg7 $146 {[%emt 0:02:37]} ({Predecessor:} 7... Bg4 8. Qb3 Nd7 9. exd5 Ne7 10. O-O O-O 11. Qc4 Bxf3 12. Nxf3 Nxd5 13. Bc2 {½-½ (13) Nazarov,V (2235)-Yashkov,A (2144) Konakovo 2012}) 8. exd5 {[%emt 0:00:49][%cal Od5d6] White is slightly better.} Nf6 {[%emt 0:00:50]} (8... Ne7 $14 {feels stronger.}) 9. Qe2+ {[%emt 0:01:25]} Qe7 {[%emt 0:01:13]} 10. Qxe7+ {[%emt 0:00:20]} Kxe7 {[%emt 0:00:07]} 11. dxc6 {[%emt 0:00:31]} Nxc6 {[%emt 0:00:08]} 12. O-O {[%emt 0:00:19]} Rd8 {[%emt 0:00:09]} 13. Bc2 {[%emt 0:00:46]} Be6 {[%emt 0:00:50]} 14. Nb3 {[%emt 0:01:43]} b6 {[%emt 0:01:49] Against Nc5} 15. Nbd4 {[%emt 0:03:38]} Bd5 {[%emt 0:03:35]} 16. Nxc6+ {[%emt 0:09:47]} Bxc6 {[%emt 0:02:06]} 17. Ne5 {[%emt 0:09:20]} Bd5 {[%emt 0:00:51]} 18. Re1 {[%emt 0:05:57] Nxg6+ is the strong threat.} Kf8 {[%emt 0:02:17]} 19. Be3 {[%emt 0:06:05]} Ne4 {[%emt 0:02:50]} 20. Bd4 {[%emt 0:00:54]} Nd6 {[%emt 0:01:00]} 21. Bd3 {[%emt 0:03:10] Against Nb5} Nb7 {[%emt 0:02:12][%cal Bd6b7,Bb7c5,Bc5e4,Be4d2][%mdl 32]} 22. Bf1 {[%emt 0:08:20] White is much more active.} Nc5 {[%emt 0:01:02]} 23. f4 {[%emt 0:04:50]} Rac8 {[%emt 0:00:39]} 24. g3 {[%emt 0:02:03]} Ne4 {[%emt 0:02:53]} 25. Bg2 {[%emt 0:03:41]} Nd2 {[%emt 0:07:16]} 26. Bxd5 {[%emt 0:04:38]} Rxd5 {[%emt 0:00:17]} 27. Kf2 {[%emt 0:03:23][%cal Bg1f2,Bf2f3,Bf3f4,Bf4e4][%mdl 32]} Nc4 {[%emt 0:01:31]} 28. Re2 {[%emt 0:00:24]} Bxe5 {[%emt 0:02:09]} 29. fxe5 {[%emt 0:00:35]} Ke7 {[%emt 0:03:08]} ({Black should play} 29... Na5 $14) 30. Kf3 {[%emt 0:10:39]} Ke6 {[%emt 0:00:49][%cal Rc4e5]} 31. Kf4 {[%emt 0:00:33]} Na5 {[%emt 0:02:59]} 32. Bf2 {[%emt 0:04:13]} (32. Rf1 $16) 32... Rc4+ $11 {[%emt 0:02:38]} 33. Re4 {[%emt 0:02:23]} (33. Kg5 $11 {remains equal.}) 33... Rxe4+ {[%emt 0:02:08]} 34. Kxe4 {[%emt 0:00:04] [#]} Nc4 {[%emt 0:02:26]} ({Better is} 34... Rd2 $1 $17 {[%cal Rd2f2]} 35. b4 Rxf2 36. bxa5 bxa5) 35. b3 {[%emt 0:03:57] Weighted Error Value: White=0.17 (very precise) /Black=0.13 (very precise)} 1/2-1/2

[Event "Slovakian-ch Youth 2022"]
[Site "Lubovna"]
[Date "2022.05.24"]
[Round "5.8"]
[White "Hudak, Jan"]
[Black "Demjan, David"]
[Result "0-1"]
[ECO "B07"]
[WhiteElo "1688"]
[BlackElo "1375"]
[Annotator "NA COMBH"]
[PlyCount "78"]
[EventDate "2022.05.22"]
[EventCountry "SVK"]
[SourceTitle "playchess.com"]
[Source "ChessBase"]
[SourceQuality "1"]
[TimeControl "40/5400+30:1800+30"]

1. e4 {[%emt 0:00:30]} d6 {[%emt 0:00:30]} 2. d4 {[%emt 0:00:30]} Nf6 {[%emt 0:00:30]} 3. Nc3 {[%emt 0:00:30]} c6 {[%emt 0:00:30]} 4. Nf3 {[%emt 0:00:30]} Qa5 {[%emt 0:00:25]} 5. Bd3 {[%emt 0:00:53]} e5 {[%emt 0:01:59]} 6. Be3 {[%emt 0:05:19]} Be7 {[%emt 0:03:19]} 7. Qd2 {[%emt 0:01:44]} h6 {[%emt 0:03:35]} 8. dxe5 {[%emt 0:05:39]} dxe5 {[%emt 0:00:12]} 9. Bc4 {[%emt 0:00:16]} Bb4 {[%emt 0:04:11]} 10. Bd3 {[%emt 0:09:01]} O-O {[%emt 0:09:29]} 11. Nh4 {[%emt 0:07:30]} Rd8 {[%emt 0:01:57]} 12. f3 {[%emt 0:01:33]} c5 {[%emt 0:15:50]} 13. Qe2 {[%emt 0:08:25]} Bxc3+ {[%emt 0:02:17]} 14. bxc3 {[%emt 0:00:12]} Qxc3+ {[%emt 0:00:04]} 15. Kf2 {[%emt 0:00:11]} Nc6 {[%emt 0:01:55]} 16. Bd2 {[%emt 0:13:06]} Qa3 {[%emt 0:02:28]} 17. c3 {[%emt 0:06:25]} Be6 {[%emt 0:02:48]} 18. Rhd1 {[%emt 0:01:09]} a6 {[%emt 0:03:09]} 19. g4 {[%emt 0:06:49]} Rd7 {[%emt 0:08:50]} 20. g5 {[%emt 0:04:36]} hxg5 {[%emt 0:04:42]} 21. Bxg5 {[%emt 0:00:08]} Nh7 {[%emt 0:02:08]} 22. Be3 {[%emt 0:11:15]} Rad8 {[%emt 0:01:10]} 23. Nf5 {[%emt 0:05:59]} b5 {[%emt 0:02:49]} 24. Rg1 {[%emt 0:09:06]} Bxf5 25. exf5 {[%emt 0:00:22]} Kf8 {[%emt 0:02:57]} 26. Be4 {[%emt 0:00:14]} Na5 {[%emt 0:00:51]} 27. Rac1 {[%emt 0:00:51]} Nc4 {[%emt 0:00:52]} 28. Kg2 {[%emt 0:01:07]} Rd2 {[%emt 0:04:14]} 29. Bxd2 {[%emt 0:00:15]} Rxd2 {[%emt 0:00:07]} 30. Qxd2 {[%emt 0:00:08]} Nxd2 {[%emt 0:00:09]} 31. Rc2 {[%emt 0:00:52]} Nxe4 {[%emt 0:00:20]} 32. fxe4 {[%emt 0:00:07]} Nf6 {[%emt 0:00:11]} 33. Kf3 {[%emt 0:00:30]} Qa4 {[%emt 0:00:47]} 34. Re2 {[%emt 0:00:20]} Qc4 {[%emt 0:00:21]} 35. Rc1 {[%emt 0:00:25]} Ke7 {[%emt 0:00:31]} 36. Rcc2 {[%emt 0:00:46]} a5 {[%emt 0:00:42]} 37. h4 {[%emt 0:00:21]} Nh5 {[%emt 0:00:43]} 38. Rg2 {[%emt 0:01:01]} Qd3+ {[%emt 0:00:37]} 39. Kg4 {[%emt 0:00:27]} Nf6+ {[%emt 0:01:02]} 0-1

[Event "Slovakian-ch Youth 2022"]
[Site "Lubovna"]
[Date "2022.05.24"]
[Round "5.9"]
[White "Priechodsky, Radovan"]
[Black "Rybiansky, Jergus"]
[Result "1-0"]
[ECO "A36"]
[WhiteElo "1965"]
[BlackElo "1379"]
[Annotator "TA"]
[PlyCount "61"]
[EventDate "2022.05.22"]
[EventCountry "SVK"]
[SourceTitle "playchess.com"]
[Source "ChessBase"]
[SourceQuality "1"]
[TimeControl "40/5400+30:1800+30"]

{[%evp 17,61,3,56,-9,38,-6,19,20,9,0,52,8,124,109,187,184,234,220,400,407,407,410,387,410,400,360,672,178,343,275,402,346,349,343,29988,29989,29991,465,459,450,433,379,595,597,749,729]} 1. e4 {[%emt 0:00:12]} c5 {[%emt 0:02:10]} 2. c4 {[%emt 0:00:51]} Nc6 {[%emt 0:01:11]} 3. Nc3 {[%emt 0:00:10]} e6 {[%emt 0:00:41]} 4. g3 {[%emt 0:00:16]} Nge7 {[%emt 0:01:13]} 5. Bg2 {[%emt 0:00:11]} g6 {[%emt 0:00:46]} 6. Nge2 {[%emt 0:00:17]} Bg7 {[%emt 0:00:38]} 7. O-O {[%emt 0:00:06]} O-O {[%emt 0:00:06]} 8. d3 {[%emt 0:00:45]} a6 {[%emt 0:02:58]} 9. Be3 {[%emt 0:00:46]} d6 {[%emt 0:03:43]} (9... Nd4 $11) 10. Qd2 {[%emt 0:04:04] A36: Symmetrical English vs ...g6: 4 Bg2 Bg7.} ({White should play} 10. d4 $1 $14) 10... Bd7 {[%emt 0:04:54]} (10... b5 $11) 11. Bh6 {[%emt 0:02:39] [#]} Qc7 $146 {[%emt 0:04:02]} (11... Bxh6 {seems wilder.} 12. Qxh6 Rb8 13. Rad1 Nd4) ({Predecessor:} 11... Rb8 12. Bxg7 Kxg7 13. b3 b5 14. Rab1 Qa5 15. Qb2 e5 16. f4 f5 17. Nd5 Nxd5 18. exd5 {½-½ (24) Jung,M (1835)-Klettke,W (1959) Binz 2016}) 12. Bxg7 {[%emt 0:04:14] The position is equal.} Kxg7 {[%emt 0:00:09]} 13. b3 {[%emt 0:00:50]} Rfb8 {[%emt 0:11:37]} (13... Nd4 $11) 14. d4 {[%emt 0:12:45]} b5 {[%emt 0:13:36]} (14... cxd4 $11 {remains equal.} 15. Nxd4 Nxd4 16. Qxd4+ e5) 15. d5 $16 {[%emt 0:09:25]} exd5 {[%emt 0:07:58]} (15... Nd4 $16) 16. cxd5 $18 {[%emt 0:06:26][%cal Bc4d5,Bd5d6][%mdl 32]} (16. Nxd5 $6 Nxd5 17. cxd5 Na7 $16) 16... Nd8 {[%emt 0:08:00]} (16... Nd4 $142 17. Nxd4 cxd4) 17. e5 {[%emt 0:00:52]} Bf5 {[%emt 0:11:58]} (17... Qb6 18. exd6 (18. Qg5 Ng8 $16) 18... Ng8) 18. g4 {[%emt 0:05:11]} Bxg4 {[%emt 0:02:26]} 19. exd6 {[%emt 0:00:08]} Qxd6 {[%emt 0:03:37]} 20. Ne4 {[%emt 0:03:12]} Qb6 {[%emt 0:06:36]} (20... Qxd5 $2 21. Qc3+ Kh6 22. Qe3+ (22. Nxc5 b4 $16) 22... Kg7 23. Nf6 $1 $18 {[%mdl 512]} (23. Nxc5 Qd6 $16)) 21. d6 {[%emt 0:00:55]} Nec6 $2 {[%emt 0:01:40]} (21... Ng8 22. Nf4 Nb7) 22. N2c3 $2 {[%emt 0:15:54]} (22. Qc3+ Nd4 {[#]} 23. Nxc5 $1) 22... Be6 $2 {[%emt 0:03:37]} (22... Ne6) 23. Rac1 {[%emt 0:11:58]} ({Much less strong is} 23. Qg5 h6 24. Qf6+ (24. Qxc5 Ra7 $16) 24... Kg8) 23... Nb7 {[%emt 0:02:08]} (23... c4 $142 24. Rfd1 Ne5) 24. Nd5 {[%emt 0:03:07]} Bxd5 {[%emt 0:02:45]} 25. Qxd5 {[%emt 0:00:16][%cal Re4c5]} Nd4 $2 {[%emt 0:00:26]} (25... Rd8 $18 26. d7 (26. Nxc5 Rxd6 27. Qf3 Nxc5 $11) 26... Qc7 27. Nxc5 Nxc5) 26. Qe5+ {[%emt 0:01:37]} Kh6 {[%emt 0:00:54]} 27. Nxc5 {[%emt 0:01:55]} (27. Rc3 $142 Ne2+ 28. Kh1 Nxc3 29. Nf6 (29. Qxc3 f5 $16) 29... g5 30. f4 Ne4 31. Qxe4 Kg7 32. Qxh7+ Kxf6 33. Qh6+ Kf5 34. fxg5+ Kg4 35. Bh3#) 27... Qxd6 {[%emt 0:00:42]} 28. Qe3+ {[%emt 0:00:35]} Kg7 {[%emt 0:00:47]} 29. Nxb7 {[%emt 0:00:12]} Rxb7 {[%emt 0:00:42]} (29... Qf6 {keeps fighting.} 30. Rcd1 Nf5) 30. Bxb7 {[%emt 0:00:58]} Ra7 {[%emt 0:00:41]} 31. Rfd1 {[%emt 0:00:17] White took control after the opening.  Weighted Error Value: White=0.78/Black=1.11} 1-0

[Event "Slovakian-ch Youth 2022"]
[Site "Lubovna"]
[Date "2022.05.24"]
[Round "5.9"]
[White "Paholok, Adam"]
[Black "Cerven, Samuel"]
[Result "1-0"]
[ECO "B23"]
[WhiteElo "1449"]
[BlackElo "1353"]
[Annotator "NA RC COMBH"]
[PlyCount "39"]
[EventDate "2022.05.22"]
[EventCountry "SVK"]
[SourceTitle "playchess.com"]
[Source "ChessBase"]
[SourceQuality "1"]
[TimeControl "40/5400+30:1800+30"]

1. e4 {[%emt 0:00:02]} c5 {[%emt 0:00:33]} 2. Nc3 {[%emt 0:00:07]} d6 {[%emt 0:00:42]} 3. f4 {[%emt 0:00:21]} g6 {[%emt 0:06:04]} 4. Bb5+ {[%emt 0:00:36]} Bd7 {[%emt 0:00:53]} 5. Bc4 {[%emt 0:00:06]} Bg7 {[%emt 0:03:26]} 6. Nf3 {[%emt 0:01:56]} e6 {[%emt 0:09:27]} 7. d3 {[%emt 0:00:08]} Ne7 {[%emt 0:00:35]} 8. O-O {[%emt 0:00:24]} O-O {[%emt 0:00:08]} 9. Qe1 {[%emt 0:00:15]} a6 {[%emt 0:01:01]} 10. a4 {[%emt 0:00:11]} Nbc6 {[%emt 0:00:39]} 11. f5 {[%emt 0:10:35]} exf5 {[%emt 0:04:51]} 12. Qh4 {[%emt 0:00:49]} Ne5 {[%emt 0:20:50]} 13. Bg5 {[%emt 0:08:22]} Re8 {[%emt 0:04:25]} 14. Nd5 {[%emt 0:00:29]} N5c6 {[%emt 0:04:22]} 15. Nf6+ {[%emt 0:07:52]} Bxf6 {[%emt 0:01:03]} 16. Bxf6 {[%emt 0:00:08]} h5 {[%emt 0:02:34]} 17. Qg5 {[%emt 0:00:29]} Kh7 {[%emt 0:00:13]} 18. Bxf7 {[%emt 0:00:41]} Ne5 {[%emt 0:05:54]} 19. Nxe5 {[%emt 0:00:43]} dxe5 {[%emt 0:00:16]} 20. Bxg6+ {[%emt 0:00:20]} 1-0

[Event "Slovakian-ch Youth 2022"]
[Site "Lubovna"]
[Date "2022.05.24"]
[Round "5.10"]
[White "Kapec, Kristian"]
[Black "Mederly, Jan"]
[Result "1-0"]
[ECO "B10"]
[WhiteElo "1902"]
[BlackElo "1446"]
[Annotator "TA"]
[PlyCount "51"]
[EventDate "2022.05.22"]
[EventCountry "SVK"]
[SourceTitle "playchess.com"]
[Source "ChessBase"]
[SourceQuality "1"]
[TimeControl "40/5400+30:1800+30"]

{[%evp 9,51,-75,-83,-187,-185,-395,-401,-550,-261,-314,-338,-370,-378,-498,-265,-282,-274,-277,-233,-244,-246,-254,-254,-250,-250,-222,0,0,0,0,0,-5,-6,0,0,-12,-14,-42,0,0,0,-18,320,332]} 1. c4 {[%emt 0:00:42]} c6 {[%emt 0:02:23][%cal Bc7c6,Bc6d5,Bd5e4][%mdl 32]} 2. e4 {[%emt 0:05:17]} d5 {[%emt 0:01:08]} 3. cxd5 {[%emt 0:00:04]} cxd5 {[%emt 0:00:41]} 4. Bb5+ {[%emt 0:00:33]} Bd7 {[%emt 0:02:14] [#]} 5. Qb3 $146 {[%emt 0:06:50]} ({Predecessor:} 5. Bxd7+ Qxd7 6. d3 e5 7. Nd2 Nf6 8. Qf3 Nc6 9. Ne2 Be7 10. a3 O-O 11. O-O d4 {1-0 (44) Churyaev,A (1025)-Shim Ng Min,F (1117) LSS email 2020}) 5... dxe4 {[%emt 0:07:37]} 6. Bc4 {[%emt 0:01:34] B10: Caro-Kann: 2 d3 and 2 c4.} (6. d3 $17 {was necessary.}) 6... e6 $19 {[%emt 0:01:17] Strongly threatening ...Nc6.} 7. Qxb7 {[%emt 0:00:38]} (7. d4) 7... Nc6 $1 {[%emt 0:01:34]} 8. Na3 {[%emt 0:17:23] Black is winning.} Na5 {[%emt 0:21:36] Prevents Qb3.} (8... Bxa3 $142 9. Ne2 (9. bxa3 $2 Rb8 $19) 9... Rb8) 9. Qxe4 {[%emt 0:03:08]} Bxa3 {[%emt 0:04:25]} ({And not} 9... Nf6 10. Qe2 $17) 10. bxa3 {[%emt 0:02:48]} Bc6 $1 {[%emt 0:00:42]} 11. Qg4 {[%emt 0:00:10]} Nxc4 {[%emt 0:00:22]} (11... Nf6 $142 12. Qg3 (12. Qxg7 $2 Rg8 $19) 12... Nxc4) 12. Qxc4 {[%emt 0:00:05]} Bxg2 {[%emt 0:07:17]} 13. Qg4 {[%emt 0:00:05]} Bxh1 {[%emt 0:01:01]} 14. Qxg7 {[%emt 0:00:06]} Qf6 {[%emt 0:00:17]} 15. Bb2 {[%emt 0:00:11]} Qxg7 {[%emt 0:03:11]} 16. Bxg7 {[%emt 0:00:05] [#]} Bd5 {[%emt 0:00:08][%cal Of7f6]} 17. Rc1 {[%emt 0:05:13] [#]} Kd7 $2 {[%emt 0:17:02]} 18. Bxh8 $11 {[%emt 0:01:45]} Bxa2 {[%emt 0:00:30]} 19. Bd4 {[%emt 0:00:43]} a6 {[%emt 0:00:48]} 20. Nf3 {[%emt 0:01:06]} f6 {[%emt 0:01:15] Against Ne5+} 21. Ke2 {[%emt 0:02:27]} Rc8 {[%emt 0:02:42]} 22. Rg1 {[%emt 0:01:36]} e5 {[%emt 0:03:41]} 23. Bc3 {[%emt 0:00:40]} Kc6 {[%emt 0:02:31]} 24. Rg7 {[%emt 0:00:57]} Rc7 {[%emt 0:00:16]} 25. Rg4 {[%emt 0:02:33]} Kd5 $2 {[%emt 0:03:40][%mdl 8192]} 26. Rxg8 {[%emt 0:00:43] Weighted Error Value: White=0.37/Black=0.56} 1-0